[Event "46th GRE-chT Premier 2018"]
[Site "Rio Achaia"]
[Date "2018.07.11"]
[Round "3"]
[White "Kollias, Ioannis K"]
[Black "Rousos, Stamatios"]
[Result "1/2-1/2"]
[ECO "A45"]
[WhiteElo "1546"]
[BlackElo "1700"]
[Annotator "NA"]
[PlyCount "121"]
[EventDate "2018.07.10"]
[EventType "team-tourn"]
[EventCountry "GRE"]
[SourceTitle "playchess.com"]
[Source "ChessBase"]
[SourceQuality "1"]
[TimeControl "40/5400+30:1800+30"]

1. d4 {[%emt 0:00:00]} Nf6 {[%emt 0:00:00]} 2. Bg5 {[%emt 0:00:00]} g6 {[%emt 0:00:38]} 3. Bxf6 {[%emt 0:00:00]} exf6 {[%emt 0:00:05]} 4. e3 {[%emt 0:00:19]} d5 {[%emt 0:00:52]} 5. g3 {[%emt 0:00:14]} Bd6 {[%emt 0:01:15]} 6. Bg2 {[%emt 0:00:26]} c6 {[%emt 0:00:39]} 7. Ne2 {[%emt 0:00:21]} Qe7 {[%emt 0:01:27]} 8. O-O {[%emt 0:01:21]} h5 {[%emt 0:00:53]} 9. c4 {[%emt 0:12:28]} dxc4 {[%emt 0:07:33]} 10. Nd2 {[%emt 0:01:13]} h4 {[%emt 0:08:54]} 11. Nxc4 {[%emt 0:01:51]} Bc7 {[%emt 0:01:18]} 12. Nc3 {[%emt 0:04:45]} hxg3 {[%emt 0:08:05]} 13. hxg3 {[%emt 0:00:14]} Qf8 {[%emt 0:07:54]} 14. Re1 {[%emt 0:06:46]} Qh6 {[%emt 0:02:36]} 15. Qf3 {[%emt 0:02:57]} Qh2+ {[%emt 0:17:27]} 16. Kf1 {[%emt 0:00:11]} Bh3 {[%emt 0:01:21]} 17. Bxh3 {[%emt 0:01:49]} Qxh3+ {[%emt 0:02:57]} 18. Ke2 {[%emt 0:01:17]} Qe6 {[%emt 0:01:53]} 19. Nd2 {[%emt 0:03:28]} Nd7 {[%emt 0:01:35]} 20. Rac1 {[%emt 0:07:56]} Kf8 {[%emt 0:05:44]} 21. Rh1 {[%emt 0:06:47]} Kg7 {[%emt 0:00:31]} 22. Qe4 {[%emt 0:02:04]} Rae8 {[%emt 0:07:11]} 23. Rxh8 {[%emt 0:03:52]} Rxh8 {[%emt 0:00:10]} 24. d5 {[%emt 0:02:45]} cxd5 {[%emt 0:01:38]} 25. Nxd5 {[%emt 0:01:17]} Qa6+ {[%emt 0:00:57]} 26. Qc4 {[%emt 0:01:00]} Qxc4+ {[%emt 0:00:44]} 27. Nxc4 {[%emt 0:00:32]} Bb8 {[%emt 0:00:13]} 28. Nd2 {[%emt 0:11:40]} Ne5 {[%emt 0:01:58]} 29. Nf3 {[%emt 0:00:35]} Rd8 {[%emt 0:01:02]} 30. Nxe5 {[%emt 0:03:33]} Rxd5 {[%emt 0:00:24]} 31. Nd3 {[%emt 0:00:30]} f5 {[%emt 0:01:08]} 32. Rc8 {[%emt 0:02:22]} Be5 {[%emt 0:02:14]} 33. Nxe5 {[%emt 0:00:44]} Rxe5 {[%emt 0:00:05]} 34. Rc7 {[%emt 0:01:33]} Rb5 {[%emt 0:00:19]} 35. b3 {[%emt 0:00:27]} a5 {[%emt 0:00:38]} 36. Kd3 {[%emt 0:01:35]} Rd5+ {[%emt 0:00:23]} 37. Kc2 {[%emt 0:01:23]} b5 {[%emt 0:00:21]} 38. Rc6 {[%emt 0:07:00]} b4 {[%emt 0:00:28]} 39. Rc4 {[%emt 0:00:56]} Kf6 {[%emt 0:00:59]} 40. f4 {[%emt 0:00:00]} Ke6 {[%emt 0:00:00]} 41. Rc8 {[%emt 0:02:38]} Kd7 {[%emt 0:03:14]} 42. Ra8 {[%emt 0:01:26]} Ke7 {[%emt 0:01:41]} 43. Ra6 {[%emt 0:00:47]} Kf8 {[%emt 0:00:12]} 44. Ra7 {[%emt 0:01:35]} Kg7 {[%emt 0:00:21]} 45. Rc7 {[%emt 0:00:44]} g5 {[%emt 0:00:38]} 46. fxg5 {[%emt 0:03:38]} Kg6 {[%emt 0:00:04]} 47. Re7 {[%emt 0:04:00]} Kxg5 {[%emt 0:00:10]} 48. Rxf7 {[%emt 0:00:23]} Kg4 {[%emt 0:00:04]} 49. Rg7+ {[%emt 0:00:29]} Kf3 {[%emt 0:00:04]} 50. Rg5 {[%emt 0:00:48]} Kxe3 {[%emt 0:01:00]} 51. g4 {[%emt 0:02:19]} Rd2+ {[%emt 0:00:42]} 52. Kc1 {[%emt 0:01:38]} fxg4 {[%emt 0:01:16]} 53. Rxg4 {[%emt 0:01:43]} Rxa2 {[%emt 0:00:06]} 54. Kb1 {[%emt 0:01:50]} Re2 {[%emt 0:00:14]} 55. Rg5 {[%emt 0:01:03]} Kd3 {[%emt 0:00:06]} 56. Rxa5 {[%emt 0:00:37]} Kc3 {[%emt 0:00:04]} 57. Rh5 {[%emt 0:01:43]} Kxb3 {[%emt 0:00:14]} 58. Rh3+ {[%emt 0:00:06]} Ka4 {[%emt 0:00:13]} 59. Rg3 {[%emt 0:00:25]} b3 {[%emt 0:00:14]} 60. Rg8 {[%emt 0:00:20]} Ka3 {[%emt 0:01:38]} 61. Ra8+ {[%emt 0:00:12]} 1/2-1/2

[Event "46th GRE-chT Premier 2018"]
[Site "Rio Achaia"]
[Date "2018.07.11"]
[Round "3"]
[White "Rousis, Chrysostomos"]
[Black "Stefanou, Konstantinos"]
[Result "0-1"]
[ECO "B44"]
[WhiteElo "1483"]
[BlackElo "1677"]
[Annotator "NA"]
[PlyCount "78"]
[EventDate "2018.07.10"]
[EventType "team-tourn"]
[EventCountry "GRE"]
[SourceTitle "playchess.com"]
[Source "ChessBase"]
[SourceQuality "1"]
[TimeControl "40/5400+30:1800+30"]

1. e4 {[%emt 0:00:00]} c5 {[%emt 0:00:00]} 2. Nf3 {[%emt 0:00:00]} e6 {[%emt 0:00:00]} 3. d4 {[%emt 0:00:00]} cxd4 {[%emt 0:00:00]} 4. Nxd4 {[%emt 0:00:01]} Nc6 {[%emt 0:00:01]} 5. Nb3 {[%emt 0:00:18]} Nf6 {[%emt 0:01:18]} 6. Nc3 {[%emt 0:00:07]} Bb4 {[%emt 0:01:12]} 7. Bd3 {[%emt 0:01:24]} d5 {[%emt 0:01:09]} 8. exd5 {[%emt 0:05:15]} Nxd5 {[%emt 0:00:34]} 9. Bd2 {[%emt 0:00:26]} Nxc3 {[%emt 0:01:42]} 10. bxc3 {[%emt 0:00:13]} Be7 {[%emt 0:00:32]} 11. O-O {[%emt 0:01:36]} O-O {[%emt 0:03:44]} 12. Qh5 {[%emt 0:04:11]} g6 {[%emt 0:03:11]} 13. Qe2 {[%emt 0:01:11]} Bf6 {[%emt 0:03:17]} 14. Rfd1 {[%emt 0:07:59]} Qe7 {[%emt 0:06:09]} 15. Rab1 {[%emt 0:01:49]} b6 {[%emt 0:26:50]} 16. Nd4 {[%emt 0:15:27]} Bb7 {[%emt 0:02:19]} 17. Be3 {[%emt 0:05:13]} Rac8 {[%emt 0:11:50]} 18. Nxc6 {[%emt 0:05:25]} Bxc6 {[%emt 0:05:02]} 19. Bd4 {[%emt 0:00:36]} e5 {[%emt 0:03:59]} 20. Re1 {[%emt 0:05:51]} Rfe8 {[%emt 0:01:16]} 21. Qd2 {[%emt 0:04:53]} Qb7 {[%emt 0:02:24]} 22. Be3 {[%emt 0:09:16]} Bxg2 {[%emt 0:02:04]} 23. Bg5 {[%emt 0:01:25]} Bg7 {[%emt 0:07:29]} 24. Qe2 {[%emt 0:04:22]} Qf3 {[%emt 0:05:25]} 25. Ba6 {[%emt 0:01:00]} Rxc3 {[%emt 0:01:34]} 26. Qxf3 {[%emt 0:03:58]} Bxf3 {[%emt 0:00:23]} 27. Re3 {[%emt 0:00:08]} e4 {[%emt 0:01:22]} 28. Rbe1 {[%emt 0:00:57]} h6 {[%emt 0:01:02]} 29. Bxh6 {[%emt 0:00:49]} Rd8 {[%emt 0:03:05]} 30. Bxg7 {[%emt 0:02:50]} Rxe3 {[%emt 0:00:05]} 31. Rxe3 {[%emt 0:00:09]} Rd1+ {[%emt 0:00:32]} 32. Bf1 {[%emt 0:00:07]} Kxg7 {[%emt 0:00:07]} 33. h3 {[%emt 0:01:18]} f5 {[%emt 0:00:32]} 34. Ra3 {[%emt 0:01:53]} a5 {[%emt 0:00:44]} 35. Rb3 {[%emt 0:00:14]} Be2 {[%emt 0:00:36]} 36. Rxb6 {[%emt 0:00:16]} Rxf1+ {[%emt 0:00:37]} 37. Kg2 {[%emt 0:00:08]} Rc1 {[%emt 0:01:14]} 38. Rb7+ {[%emt 0:00:30]} Kh6 {[%emt 0:00:10]} 39. Rc7 {[%emt 0:00:22]} Kg5 {[%emt 0:01:29]} 0-1

[Event "46th GRE-chT Premier 2018"]
[Site "Rio Achaia"]
[Date "2018.07.11"]
[Round "3"]
[White "Gioutsou, Miranta"]
[Black "Apostolakaki, Evangelia"]
[Result "0-1"]
[ECO "C41"]
[WhiteElo "1467"]
[BlackElo "1376"]
[Annotator "NA"]
[PlyCount "158"]
[EventDate "2018.07.10"]
[EventType "team-tourn"]
[EventCountry "GRE"]
[SourceTitle "playchess.com"]
[Source "ChessBase"]
[SourceQuality "1"]
[TimeControl "40/5400+30:1800+30"]

1. e4 {[%emt 0:00:00]} e5 {[%emt 0:00:00]} 2. Nf3 {[%emt 0:00:00]} d6 {[%emt 0:00:00]} 3. d4 {[%emt 0:00:00]} exd4 {[%emt 0:00:00]} 4. Nxd4 {[%emt 0:00:00]} Nc6 {[%emt 0:00:00]} 5. Nc3 {[%emt 0:00:46]} Nf6 {[%emt 0:00:00]} 6. Nxc6 {[%emt 0:06:00]} bxc6 {[%emt 0:00:09]} 7. Bd3 {[%emt 0:04:22]} Be7 {[%emt 0:01:11]} 8. O-O {[%emt 0:01:24]} O-O {[%emt 0:00:11]} 9. Re1 {[%emt 0:06:00]} Be6 {[%emt 0:02:04]} 10. Bf4 {[%emt 0:15:19]} Rb8 {[%emt 0:08:43]} 11. Rb1 {[%emt 0:06:23]} Re8 {[%emt 0:11:19]} 12. a3 {[%emt 0:05:15]} Nd7 {[%emt 0:04:09]} 13. b4 {[%emt 0:07:42]} Bf6 {[%emt 0:01:04]} 14. Qd2 {[%emt 0:03:57]} Ne5 {[%emt 0:07:35]} 15. b5 {[%emt 0:08:30]} cxb5 {[%emt 0:03:04]} 16. Nxb5 {[%emt 0:01:12]} Nxd3 {[%emt 0:03:19]} 17. Qxd3 {[%emt 0:00:55]} a6 {[%emt 0:07:20]} 18. Na7 {[%emt 0:08:18]} Rxb1 {[%emt 0:04:02]} 19. Rxb1 {[%emt 0:00:11]} Qa8 {[%emt 0:00:08]} 20. Be3 {[%emt 0:04:08]} Bc8 {[%emt 0:01:28]} 21. Nxc8 {[%emt 0:00:22]} Qxc8 {[%emt 0:00:08]} 22. f3 {[%emt 0:01:36]} Qa8 {[%emt 0:07:44]} 23. Qb3 {[%emt 0:04:09]} Qc6 {[%emt 0:03:48]} 24. c4 {[%emt 0:03:57]} h6 {[%emt 0:02:36]} 25. Bf2 {[%emt 0:01:54]} Bg5 {[%emt 0:04:16]} 26. Qb4 {[%emt 0:01:44]} Be7 {[%emt 0:02:36]} 27. Bd4 {[%emt 0:01:18]} f6 {[%emt 0:05:01]} 28. Rc1 {[%emt 0:01:12]} d5 {[%emt 0:05:21]} 29. exd5 {[%emt 0:02:48]} Bxb4 {[%emt 0:00:18]} 30. dxc6 {[%emt 0:00:09]} Bxa3 {[%emt 0:00:08]} 31. Ra1 {[%emt 0:01:30]} Bd6 {[%emt 0:00:16]} 32. Rxa6 {[%emt 0:02:14]} Re1+ {[%emt 0:00:10]} 33. Kf2 {[%emt 0:00:07]} Rc1 {[%emt 0:00:19]} 34. h3 {[%emt 0:02:11]} Rxc4 {[%emt 0:00:08]} 35. Ba7 {[%emt 0:01:08]} Kf7 {[%emt 0:01:21]} 36. Be3 {[%emt 0:00:35]} Bc5 {[%emt 0:01:49]} 37. Bxc5 {[%emt 0:00:14]} Rxc5 {[%emt 0:00:05]} 38. Ke3 {[%emt 0:00:42]} Ke6 {[%emt 0:00:11]} 39. Kf2 {[%emt 0:00:32]} Kd6 {[%emt 0:00:18]} 40. Ra8 {[%emt 0:00:00]} Kxc6 {[%emt 0:00:00]} 41. h4 {[%emt 0:01:23]} Re5 {[%emt 0:01:22]} 42. g4 {[%emt 0:01:51]} Kb7 {[%emt 0:00:45]} 43. Rg8 {[%emt 0:00:20]} Re7 {[%emt 0:00:09]} 44. Rd8 {[%emt 0:01:07]} c5 {[%emt 0:00:38]} 45. Rd3 {[%emt 0:00:55]} Kc6 {[%emt 0:00:30]} 46. f4 {[%emt 0:01:35]} c4 {[%emt 0:00:41]} 47. Rd8 {[%emt 0:01:05]} Kc5 {[%emt 0:00:24]} 48. g5 {[%emt 0:00:58]} hxg5 {[%emt 0:00:31]} 49. hxg5 {[%emt 0:00:11]} fxg5 {[%emt 0:00:05]} 50. fxg5 {[%emt 0:00:10]} Re5 {[%emt 0:00:11]} 51. Rd7 {[%emt 0:02:16]} Rxg5 {[%emt 0:00:31]} 52. Ke3 {[%emt 0:00:23]} Kc6 {[%emt 0:05:03]} 53. Re7 {[%emt 0:08:11]} Kd6 {[%emt 0:01:17]} 54. Ra7 {[%emt 0:01:14]} Kc6 {[%emt 0:04:55]} 55. Re7 {[%emt 0:00:56]} g6 {[%emt 0:01:28]} 56. Kd4 {[%emt 0:03:37]} Rg4+ {[%emt 0:00:34]} 57. Kc3 {[%emt 0:00:10]} Kd6 {[%emt 0:01:07]} 58. Ra7 {[%emt 0:01:20]} Ke6 {[%emt 0:00:51]} 59. Ra6+ {[%emt 0:00:55]} Kf5 {[%emt 0:00:26]} 60. Ra5+ {[%emt 0:00:21]} Kf6 {[%emt 0:00:13]} 61. Rc5 {[%emt 0:01:01]} g5 {[%emt 0:02:16]} 62. Ra5 {[%emt 0:00:51]} Kg6 {[%emt 0:00:32]} 63. Ra6+ {[%emt 0:01:31]} Kh5 {[%emt 0:00:12]} 64. Ra8 {[%emt 0:00:30]} Rf4 {[%emt 0:00:34]} 65. Rh8+ {[%emt 0:00:25]} Kg4 {[%emt 0:00:07]} 66. Rg8 {[%emt 0:00:12]} Kh4 {[%emt 0:00:55]} 67. Rh8+ {[%emt 0:00:39]} Kg3 {[%emt 0:00:13]} 68. Rg8 {[%emt 0:00:31]} g4 {[%emt 0:00:12]} 69. Kd2 {[%emt 0:04:15]} Kf2 {[%emt 0:02:02]} 70. Re8 {[%emt 0:00:48]} g3 {[%emt 0:00:34]} 71. Re2+ {[%emt 0:00:29]} Kf3 {[%emt 0:00:15]} 72. Re3+ {[%emt 0:00:11]} Kg4 {[%emt 0:00:39]} 73. Re8 {[%emt 0:01:23]} g2 {[%emt 0:01:35]} 74. Rg8+ {[%emt 0:01:13]} Kh3 {[%emt 0:01:40]} 75. Ke3 {[%emt 0:02:39]} Rg4 {[%emt 0:00:52]} 76. Rxg4 {[%emt 0:01:01]} Kxg4 {[%emt 0:00:13]} 77. Kf2 {[%emt 0:00:03]} c3 {[%emt 0:00:17]} 78. Kxg2 {[%emt 0:00:05]} c2 {[%emt 0:00:08]} 79. Kh2 {[%emt 0:00:08]} c1=Q {[%emt 0:00:18]} 0-1

[Event "46th GRE-chT Premier 2018"]
[Site "Rio Achaia"]
[Date "2018.07.11"]
[Round "3"]
[White "Aivazian, Elpida Sofia"]
[Black "Tafani, Kleinta"]
[Result "1-0"]
[ECO "B38"]
[WhiteElo "1451"]
[BlackElo "1102"]
[Annotator "NA"]
[PlyCount "79"]
[EventDate "2018.07.10"]
[EventType "team-tourn"]
[EventCountry "GRE"]
[SourceTitle "playchess.com"]
[Source "ChessBase"]
[SourceQuality "1"]
[TimeControl "40/5400+30:1800+30"]

1. e4 {[%emt 0:00:00]} c5 {[%emt 0:00:01]} 2. Nf3 {[%emt 0:00:00]} Nc6 {[%emt 0:00:09]} 3. d4 {[%emt 0:00:00]} cxd4 {[%emt 0:00:11]} 4. Nxd4 {[%emt 0:00:00]} g6 {[%emt 0:00:07]} 5. c4 {[%emt 0:00:21]} Bg7 {[%emt 0:00:16]} 6. Be3 {[%emt 0:00:26]} Qa5+ {[%emt 0:04:30]} 7. Nc3 {[%emt 0:04:06]} Nf6 {[%emt 0:00:46]} 8. Nxc6 {[%emt 0:00:53]} bxc6 {[%emt 0:00:09]} 9. Bd3 {[%emt 0:08:24]} Rb8 {[%emt 0:14:05]} 10. Rb1 {[%emt 0:09:31]} O-O {[%emt 0:07:43]} 11. O-O {[%emt 0:02:12]} Qc7 {[%emt 0:02:03]} 12. h3 {[%emt 0:04:57]} Ra8 {[%emt 0:06:38]} 13. f4 {[%emt 0:07:34]} Bb7 {[%emt 0:05:26]} 14. e5 {[%emt 0:02:45]} Ne8 {[%emt 0:00:58]} 15. c5 {[%emt 0:07:43]} a5 {[%emt 0:01:50]} 16. Na4 {[%emt 0:01:18]} Rd8 {[%emt 0:00:45]} 17. Qc2 {[%emt 0:09:23]} d5 {[%emt 0:04:32]} 18. cxd6 exd6 {[%emt 0:00:11]} 19. Bb6 {[%emt 0:00:43]} Qb8 {[%emt 0:00:31]} 20. Bxd8 {[%emt 0:00:22]} Qxd8 {[%emt 0:00:09]} 21. Rbe1 {[%emt 0:07:26]} Nc7 {[%emt 0:10:02]} 22. exd6 {[%emt 0:05:39]} Qxd6 {[%emt 0:00:12]} 23. Nc5 {[%emt 0:00:44]} Bd4+ {[%emt 0:00:15]} 24. Kh1 {[%emt 0:00:24]} Qxc5 {[%emt 0:06:24]} 25. Qxc5 {[%emt 0:01:53]} Bxc5 {[%emt 0:00:06]} 26. Re5 {[%emt 0:00:39]} Bd6 {[%emt 0:00:57]} 27. Rxa5 {[%emt 0:01:02]} Ra8 {[%emt 0:00:33]} 28. Rxa8+ {[%emt 0:00:44]} Bxa8 {[%emt 0:00:19]} 29. f5 {[%emt 0:05:33]} Kg7 {[%emt 0:00:11]} 30. fxg6 {[%emt 0:03:53]} hxg6 {[%emt 0:00:10]} 31. Be4 {[%emt 0:02:31]} c5 {[%emt 0:03:01]} 32. Bxa8 {[%emt 0:00:51]} Nxa8 {[%emt 0:00:08]} 33. Rd1 {[%emt 0:01:29]} Be7 {[%emt 0:04:46]} 34. a4 {[%emt 0:02:15]} Nb6 {[%emt 0:01:16]} 35. a5 {[%emt 0:01:40]} Nc4 {[%emt 0:05:42]} 36. a6 {[%emt 0:00:39]} Nb6 {[%emt 0:02:23]} 37. a7 {[%emt 0:00:29]} Kf6 {[%emt 0:00:44]} 38. Rd7 {[%emt 0:00:53]} Na8 {[%emt 0:00:51]} 39. Rb7 {[%emt 0:00:38]} c4 {[%emt 0:02:44]} 40. Rb8 {[%emt 0:00:00]} 1-0

[Event "46th GRE-chT Premier 2018"]
[Site "Rio Achaia"]
[Date "2018.07.11"]
[Round "3"]
[White "Klampatseas, Christos"]
[Black "Beliotis, Georgios"]
[Result "0-1"]
[ECO "E91"]
[WhiteElo "1440"]
[BlackElo "2175"]
[Annotator "NA"]
[PlyCount "92"]
[EventDate "2018.07.10"]
[EventType "team-tourn"]
[EventCountry "GRE"]
[SourceTitle "playchess.com"]
[Source "ChessBase"]
[SourceQuality "1"]
[TimeControl "40/5400+30:1800+30"]

1. d4 {[%emt 0:00:00]} Nf6 {[%emt 0:00:00]} 2. c4 g6 {[%emt 0:00:49]} 3. Nc3 {[%emt 0:00:02]} Bg7 {[%emt 0:00:06]} 4. e4 {[%emt 0:00:13]} d6 {[%emt 0:00:07]} 5. Be2 {[%emt 0:00:23]} O-O {[%emt 0:00:37]} 6. Nf3 {[%emt 0:04:26]} Na6 {[%emt 0:01:22]} 7. O-O {[%emt 0:03:30]} e5 {[%emt 0:00:08]} 8. d5 {[%emt 0:01:09]} Nc5 {[%emt 0:00:14]} 9. Bg5 {[%emt 0:02:48]} a5 {[%emt 0:01:02]} 10. Nd2 {[%emt 0:04:27]} h6 {[%emt 0:01:55]} 11. Be3 {[%emt 0:05:43]} Ne8 {[%emt 0:02:47]} 12. f4 {[%emt 0:11:11]} exf4 {[%emt 0:01:05]} 13. Rxf4 {[%emt 0:01:37]} Nf6 {[%emt 0:02:39]} 14. Bxc5 {[%emt 0:05:52]} dxc5 {[%emt 0:00:58]} 15. Kh1 {[%emt 0:05:01]} Nd7 {[%emt 0:01:11]} 16. Rf1 {[%emt 0:09:24]} Ne5 {[%emt 0:01:18]} 17. Nf3 {[%emt 0:02:31]} Ng4 {[%emt 0:02:42]} 18. Qd3 {[%emt 0:05:03]} b6 {[%emt 0:01:21]} 19. h3 {[%emt 0:03:44]} Ne5 {[%emt 0:02:22]} 20. Nxe5 {[%emt 0:01:08]} Bxe5 {[%emt 0:00:07]} 21. Qe3 {[%emt 0:01:09]} Kg7 {[%emt 0:01:54]} 22. Rab1 {[%emt 0:03:57]} Qh4 {[%emt 0:02:19]} 23. Nb5 {[%emt 0:10:10]} Bd7 {[%emt 0:01:20]} 24. b3 {[%emt 0:08:25]} Rae8 {[%emt 0:01:13]} 25. Bd3 {[%emt 0:01:44]} h5 {[%emt 0:04:27]} 26. Bc2 {[%emt 0:03:50]} f6 {[%emt 0:03:16]} 27. Rbd1 {[%emt 0:02:13]} g5 {[%emt 0:03:07]} 28. d6 {[%emt 0:02:16]} c6 {[%emt 0:02:25]} 29. Nc7 {[%emt 0:00:30]} Rd8 {[%emt 0:00:44]} 30. Rf5 {[%emt 0:01:19]} Rf7 {[%emt 0:02:13]} 31. Rdf1 {[%emt 0:00:54]} Bxf5 {[%emt 0:01:51]} 32. exf5 {[%emt 0:00:30]} Kg8 {[%emt 0:01:39]} 33. Rd1 {[%emt 0:00:47]} Qf4 {[%emt 0:00:47]} 34. Qxf4 {[%emt 0:00:20]} Bxf4 {[%emt 0:00:11]} 35. Ne6 {[%emt 0:00:31]} Rxd6 {[%emt 0:00:39]} 36. Nxf4 {[%emt 0:00:36]} Rxd1+ {[%emt 0:00:10]} 37. Bxd1 {[%emt 0:00:04]} gxf4 {[%emt 0:00:16]} 38. Bxh5 {[%emt 0:00:11]} Rd7 {[%emt 0:00:37]} 39. Bf3 {[%emt 0:01:07]} Rd2 {[%emt 0:00:34]} 40. Bxc6 {[%emt 0:00:00]} Rxa2 {[%emt 0:00:00]} 41. h4 {[%emt 0:07:56]} Rb2 {[%emt 0:00:32]} 42. Ba4 {[%emt 0:00:19]} Kg7 {[%emt 0:00:38]} 43. h5 {[%emt 0:09:35]} Kh6 {[%emt 0:00:08]} 44. Be8 {[%emt 0:00:40]} Rxb3 {[%emt 0:00:07]} 45. Kh2 {[%emt 0:00:41]} Rb4 {[%emt 0:00:07]} 46. Bb5 {[%emt 0:02:28]} a4 {[%emt 0:00:06]} 0-1

[Event "46th GRE-chT Premier 2018"]
[Site "Rio Achaia"]
[Date "2018.07.11"]
[Round "3"]
[White "Goutoufas, Christos"]
[Black "Mplitsa, Artemis"]
[Result "0-1"]
[ECO "C24"]
[WhiteElo "1434"]
[BlackElo "1182"]
[Annotator "NA"]
[PlyCount "46"]
[EventDate "2018.07.10"]
[EventType "team-tourn"]
[EventCountry "GRE"]
[SourceTitle "playchess.com"]
[Source "ChessBase"]
[SourceQuality "1"]
[TimeControl "40/5400+30:1800+30"]

1. e4 {[%emt 0:00:00]} e5 {[%emt 0:00:00]} 2. Bc4 {[%emt 0:00:05]} Nf6 {[%emt 0:01:07]} 3. d4 {[%emt 0:00:08]} exd4 {[%emt 0:05:12]} 4. Nf3 {[%emt 0:00:10]} Bb4+ {[%emt 0:02:52]} 5. c3 {[%emt 0:01:29]} dxc3 {[%emt 0:00:49]} 6. bxc3 {[%emt 0:00:24]} Bc5 {[%emt 0:02:47]} 7. e5 {[%emt 0:01:18]} d5 {[%emt 0:09:35]} 8. exf6 {[%emt 0:01:03]} dxc4 {[%emt 0:00:18]} 9. Qxd8+ {[%emt 0:01:46]} Kxd8 {[%emt 0:00:05]} 10. fxg7 {[%emt 0:00:12]} Re8+ {[%emt 0:01:28]} 11. Kf1 {[%emt 0:00:58]} Rg8 {[%emt 0:01:14]} 12. Bh6 {[%emt 0:00:15]} Be7 {[%emt 0:00:43]} 13. Ne5 {[%emt 0:02:10]} Be6 {[%emt 0:00:58]} 14. Nd2 {[%emt 0:03:11]} Bf6 {[%emt 0:06:48]} 15. f4 {[%emt 0:02:56]} Bxg7 {[%emt 0:02:21]} 16. Bxg7 {[%emt 0:00:13]} Rxg7 {[%emt 0:00:05]} 17. Ndxc4 {[%emt 0:00:30]} f6 {[%emt 0:02:35]} 18. Rd1+ {[%emt 0:02:49]} Ke7 {[%emt 0:00:58]} 19. g4 {[%emt 0:14:09]} fxe5 {[%emt 0:02:07]} 20. f5 {[%emt 0:00:32]} Bxc4+ {[%emt 0:00:19]} 21. Kf2 {[%emt 0:00:44]} Rxg4 {[%emt 0:00:48]} 22. Ke3 {[%emt 0:01:10]} Nc6 {[%emt 0:01:06]} 23. Rhf1 {[%emt 0:00:40]} Bxf1 {[%emt 0:00:50] Kd4} 0-1

[Event "46th GRE-chT Premier 2018"]
[Site "Rio Achaia"]
[Date "2018.07.11"]
[Round "3"]
[White "Fragou, Maria V"]
[Black "Georgitsi, Antigoni"]
[Result "1/2-1/2"]
[ECO "C55"]
[WhiteElo "1427"]
[BlackElo "1811"]
[Annotator "NA"]
[PlyCount "137"]
[EventDate "2018.07.10"]
[EventType "team-tourn"]
[EventCountry "GRE"]
[SourceTitle "playchess.com"]
[Source "ChessBase"]
[SourceQuality "1"]
[TimeControl "40/5400+30:1800+30"]

1. e4 {[%emt 0:00:00]} e5 {[%emt 0:01:42]} 2. Nf3 {[%emt 0:00:00]} Nc6 {[%emt 0:00:06]} 3. Bc4 {[%emt 0:00:00]} Nf6 {[%emt 0:00:09]} 4. d3 {[%emt 0:00:00]} h6 {[%emt 0:00:44]} 5. O-O {[%emt 0:00:00]} d6 {[%emt 0:00:06]} 6. c3 {[%emt 0:00:07]} g6 {[%emt 0:00:24]} 7. d4 {[%emt 0:00:36]} Qe7 {[%emt 0:00:36]} 8. Re1 {[%emt 0:00:11]} Bg7 {[%emt 0:02:15]} 9. Nbd2 {[%emt 0:03:11]} O-O {[%emt 0:01:55]} 10. h3 {[%emt 0:01:16]} Re8 {[%emt 0:09:15]} 11. Bb3 {[%emt 0:03:47]} Nh5 {[%emt 0:10:51]} 12. Nf1 {[%emt 0:06:00]} Qf6 {[%emt 0:02:30]} 13. Ne3 {[%emt 0:25:33]} Nf4 {[%emt 0:07:02]} 14. Nd5 {[%emt 0:04:19]} Nxd5 {[%emt 0:01:54]} 15. exd5 {[%emt 0:08:27]} Nb8 {[%emt 0:13:19]} 16. dxe5 {[%emt 0:08:14]} dxe5 {[%emt 0:01:11]} 17. Be3 {[%emt 0:07:26]} Bf5 {[%emt 0:03:04]} 18. Bc2 {[%emt 0:02:08]} Nd7 {[%emt 0:03:08]} 19. Qd2 {[%emt 0:06:47]} Kh7 {[%emt 0:06:32]} 20. Nh2 {[%emt 0:03:52]} Rad8 {[%emt 0:06:32]} 21. Qe2 {[%emt 0:04:43]} Bxc2 {[%emt 0:06:22]} 22. Qxc2 {[%emt 0:00:08]} Qd6 {[%emt 0:01:00]} 23. Rad1 {[%emt 0:01:28]} f5 {[%emt 0:01:16]} 24. f3 {[%emt 0:01:21]} Nf6 {[%emt 0:05:52]} 25. c4 {[%emt 0:01:07]} e4 {[%emt 0:02:11]} 26. f4 {[%emt 0:02:23]} Qe7 {[%emt 0:09:40]} 27. Qd2 {[%emt 0:03:43]} Nd7 {[%emt 0:01:54]} 28. b4 {[%emt 0:01:11]} a5 {[%emt 0:01:12]} 29. a3 {[%emt 0:01:03]} axb4 {[%emt 0:00:22]} 30. axb4 {[%emt 0:00:28]} Ra8 {[%emt 0:00:35]} 31. Nf1 {[%emt 0:00:32]} Ra3 {[%emt 0:00:42]} 32. Rc1 {[%emt 0:00:30]} Rd3 {[%emt 0:00:43]} 33. Qa2 {[%emt 0:00:47]} Qxb4 {[%emt 0:00:34]} 34. Rb1 {[%emt 0:00:23]} Qc3 {[%emt 0:00:45]} 35. Rec1 {[%emt 0:00:47]} Qf6 {[%emt 0:00:25]} 36. Rxb7 {[%emt 0:00:28]} Qd6 {[%emt 0:00:27]} 37. Qa5 {[%emt 0:00:50]} c6 {[%emt 0:00:37]} 38. dxc6 {[%emt 0:00:39]} Qxc6 {[%emt 0:00:25]} 39. Qb5 {[%emt 0:01:09]} Qxb5 {[%emt 0:00:35]} 40. cxb5 {[%emt 0:00:00]} Rb8 {[%emt 0:00:00]} 41. Rxb8 {[%emt 0:12:56]} Nxb8 {[%emt 0:00:55]} 42. Rc7 {[%emt 0:00:44]} Nd7 {[%emt 0:14:15]} 43. b6 {[%emt 0:01:09]} Rxe3 {[%emt 0:01:02]} 44. Nxe3 {[%emt 0:00:26]} Nxb6 {[%emt 0:00:15]} 45. Rb7 {[%emt 0:00:38]} Na4 {[%emt 0:01:03]} 46. Nd5 {[%emt 0:01:58]} Kh8 {[%emt 0:02:22]} 47. Kf1 {[%emt 0:01:19]} Nc5 {[%emt 0:03:52]} 48. Rb6 {[%emt 0:01:37]} g5 {[%emt 0:02:20]} 49. fxg5 {[%emt 0:02:24]} hxg5 {[%emt 0:00:11]} 50. Rg6 {[%emt 0:00:19]} Nd3 {[%emt 0:03:00]} 51. Rxg5 {[%emt 0:00:32]} f4 {[%emt 0:00:46]} 52. Ne7 {[%emt 0:02:32]} Bf6 {[%emt 0:01:51]} 53. Ng6+ {[%emt 0:00:25]} Kh7 {[%emt 0:02:13]} 54. Rg4 {[%emt 0:00:21]} f3 {[%emt 0:01:09]} 55. gxf3 {[%emt 0:00:38]} exf3 {[%emt 0:00:26]} 56. h4 {[%emt 0:01:17]} Ne5 {[%emt 0:00:56]} 57. Nxe5 {[%emt 0:00:15]} Bxe5 {[%emt 0:00:14]} 58. Kf2 {[%emt 0:00:06]} Kh6 {[%emt 0:00:42]} 59. Kxf3 {[%emt 0:01:26]} Bf6 {[%emt 0:00:36]} 60. Rf4 {[%emt 0:00:34]} Be5 {[%emt 0:00:37]} 61. Re4 {[%emt 0:00:12]} Bc3 {[%emt 0:00:54]} 62. Kg4 {[%emt 0:00:14]} Bd2 {[%emt 0:00:24]} 63. h5 {[%emt 0:00:28]} Bc1 {[%emt 0:00:29]} 64. Re6+ {[%emt 0:00:54]} Kh7 {[%emt 0:00:19]} 65. Re7+ {[%emt 0:02:17]} Kh6 {[%emt 0:00:11]} 66. Rc7 {[%emt 0:04:42]} Bd2 {[%emt 0:00:25]} 67. Kf5 {[%emt 0:01:49]} Be3 {[%emt 0:01:15]} 68. Rc8 {[%emt 0:02:00]} Bd4 {[%emt 0:00:42]} 69. Rc7 {[%emt 0:01:50]} 1/2-1/2